fUSD/lending_fUSD_20240803
["ID","MTS","AMOUNT","RATE_DAILY","PERIOD"]
[333990745,1722666745540,-500.0,0.00018082,2]
[333990746,1722666745551,-500.0,0.00018082,2]
[333990747,1722666745562,-5244.42,0.00018082,2]
[333990748,1722666745572,-500.0,0.00018082,2]
[333990749,1722666745582,-693.09,0.00018082,2]
[333990750,1722666745592,-761.36,0.00018082,2]
[333990751,1722666745603,-2061.72,0.00018082,2]
[333990752,1722666745612,-2038.36,0.00018082,2]
[333990753,1722666745623,-4346.28,0.00018082,2]
[333990754,1722666745633,-1475.27,0.00018082,2]
[333990755,1722666745643,-710.45,0.00018082,2]
[333990756,1722666745656,-744.05,0.00018082,2]
[333990757,1722666745667,-1223.68,0.00018082,2]
[333990758,1722666745677,-1359.7,0.00018082,2]
[333990759,1722666745687,-520.07924184,0.00018082,2]
[333990760,1722666745698,-500.0,0.00018082,2]
[333990761,1722666745708,-4500.27,0.00018082,2]
[333990762,1722666745719,-1729.93,0.00018082,2]
[333990763,1722666745737,-11630.47,0.00018082,2]
[333990764,1722666745748,-842.12,0.00018082,2]
[333990765,1722666745758,-7815.4,0.00018082,2]
[333990766,1722666745768,-1992.28,0.00018082,2]
[333990767,1722666745779,-500.0,0.00018082,2]
[333990768,1722666745789,-872.75,0.00018082,2]
[333990769,1722666745799,-1230.65,0.00018082,2]
[333990770,1722666745808,-1652.65,0.00018082,2]
[333990771,1722666745819,-404.84906937,0.00018082,2]
[333990772,1722666745829,-1417.26,0.00018082,2]
[333990773,1722666745839,-500.0,0.00018082,2]
[333990774,1722666745848,-500.0,0.00018082,2]
[333990775,1722666745858,-24317.71,0.00018082,2]
[333990776,1722666745869,-500.0,0.00018082,2]
[333990777,1722666745880,-8359.0,0.00018082,2]
[333990778,1722666745890,-1381.62,0.00018082,2]
[333990779,1722666745901,-500.0,0.00018082,2]
[333990780,1722666745911,-2959.52,0.00018082,2]
[333990781,1722666745922,-500.0,0.00018082,2]
[333990782,1722666745932,-1125.68,0.00018082,2]
[333990783,1722666745942,-2625.72,0.00018082,2]
[333990784,1722666745951,-541.08,0.00018082,2]
[333990785,1722666745962,-500.0,0.00018082,2]
[333990786,1722666745972,-1606.59,0.00018082,2]
[333990787,1722666745984,-4129.44,0.00018082,2]
[333990788,1722666745994,-500.0,0.00018082,2]
[333990789,1722666746004,-765.03,0.00018082,2]
[333990790,1722666746015,-500.0,0.00018082,2]
[333990791,1722666746025,-1071.89,0.00018082,2]
[333990792,1722666746036,-8009.82,0.00018082,2]
[333990793,1722666746046,-500.0,0.00018082,2]
[333990794,1722666746056,-500.0,0.00018082,2]
[333990795,1722666746067,-4309.68,0.00018082,2]
[333990796,1722666746077,-677.22,0.00018082,2]
[333990797,1722666746087,-500.0,0.00018082,2]
[333990798,1722666746098,-500.0,0.00018082,2]
[333990799,1722666746108,-500.0,0.00018082,2]
[333990800,1722666746118,-3498.32,0.00018082,2]
[333990801,1722666746129,-1008.21,0.00018082,2]
[333990802,1722666746140,-500.0,0.00018082,2]
[333990803,1722666746150,-2091.29,0.00018082,2]
[333990804,1722666746161,-678.45,0.00018082,2]
[333990805,1722666746171,-153.11473345,0.00018082,2]
[333990806,1722666746181,-3261.4,0.00018082,2]
[333990807,1722666746191,-500.0,0.00018082,2]
[333990808,1722666746202,-2329.21,0.00018082,2]
[333990809,1722666746212,-1982.62,0.00018082,2]
[333990810,1722666746222,-6585.94,0.00018082,2]
[333990811,1722666746233,-532.0,0.00018082,2]
[333990812,1722666746243,-2347.25,0.00018082,2]
[333990813,1722666746253,-595.79,0.00018082,2]
[333990814,1722666746263,-1438.93,0.00018082,2]
[333990815,1722666746272,-500.0,0.00018082,2]
[333990816,1722666746282,-1558.03,0.00018082,2]
[333990817,1722666746292,-12013.62,0.00018082,2]
[333990818,1722666746302,-3194.48,0.00018082,2]
[333990819,1722666746312,-3237.49,0.00018082,2]
[333990820,1722666746322,-2240.39,0.00018082,2]
[333990821,1722666746332,-1275.84,0.00018082,2]
[333990822,1722666746342,-1245.88,0.00018082,2]
[333990823,1722666746351,-869.05,0.00018082,2]
[333990824,1722666746362,-500.0,0.00018082,2]
[333990825,1722666746372,-500.0,0.00018082,2]
[333990826,1722666746383,-3558.7,0.00018082,2]
[333990827,1722666746393,-1516.63,0.00018082,2]
[333990828,1722666746403,-2444.23,0.00018082,2]
[333990829,1722666746413,-4848.71,0.00018082,2]
[333990830,1722666746424,-2528.58,0.00018082,2]
[333990831,1722666746434,-7111.63,0.00018082,2]
[333990832,1722666746444,-1234.51,0.00018082,2]
[333990833,1722666746455,-500.0,0.00018082,2]
[333990834,1722666746465,-1577.42,0.00018082,2]
[333990835,1722666746475,-3976.74,0.00018082,2]
[333990836,1722666746485,-914.84,0.00018082,2]
[333990837,1722666746495,-1179.29,0.00018082,2]
[333990838,1722666746505,-522.63,0.00018082,2]
[333990839,1722666746516,-2341.98,0.00018082,2]
[333990840,1722666746526,-2827.3,0.00018082,2]
[333990841,1722666746536,-1379.48,0.00018082,2]
[333990842,1722666746547,-13569.7,0.00018082,2]
[333990843,1722666746557,-1254.92,0.00018082,2]
[333990844,1722666746567,-989.03,0.00018082,2]
[333990845,1722666746577,-867.22,0.00018082,2]
[333990846,1722666746587,-1520.15,0.00018082,2]
[333990847,1722666746598,-4544.83,0.00018082,2]
[333990848,1722666746608,-1100.73,0.00018082,2]
[333990849,1722666746618,-797.96,0.00018082,2]
[333990850,1722666746627,-500.0,0.00018082,2]
[333990851,1722666746638,-799.61,0.00018082,2]
[333990852,1722666746648,-500.0,0.00018082,2]
[333990853,1722666746662,-5638.64,0.00018082,2]
[333990854,1722666746672,-1242.0,0.00018082,2]
[333990855,1722666746682,-500.0,0.00018082,2]
[333990856,1722666746692,-500.0,0.00018082,2]
[333990857,1722666746703,-500.0,0.00018082,2]
[333990858,1722666746713,-1488.46,0.00018082,2]
[333990859,1722666746724,-941.33,0.00018082,2]
[333990860,1722666746735,-560.97,0.00018082,2]
[333990861,1722666746746,-500.0,0.00018082,2]
[333990862,1722666746756,-920.3,0.00018082,2]
[333990863,1722666746766,-508.12246556,0.00018082,2]
[333990864,1722666746776,-3017.99,0.00018082,2]
[333990865,1722666746787,-500.0,0.00018082,2]
[333990866,1722666746797,-1976.61,0.00018082,2]
[333990867,1722666746807,-980.35,0.00018082,2]
[333990868,1722666746818,-2347.93,0.00018082,2]
[333990869,1722666746829,-500.0,0.00018082,2]
[333990870,1722666746839,-3028.02,0.00018082,2]
[333990871,1722666746849,-500.0,0.00018082,2]
[333990872,1722666746860,-1182.86,0.00018082,2]
[333990873,1722666746871,-1315.97,0.00018082,2]
[333990874,1722666746881,-663.52,0.00018082,2]
[333990875,1722666746891,-1429.57,0.00018082,2]
[333990876,1722666746901,-1009.6,0.00018082,2]
[333990877,1722666746911,-500.0,0.00018082,2]
[333990878,1722666746921,-535.59,0.00018082,2]
[333990879,1722666746932,-1659.64,0.00018082,2]
[333990880,1722666746943,-2820.52,0.00018082,2]
[333990881,1722666746952,-2112.36,0.00018082,2]
[333990882,1722666746962,-4031.55,0.00018082,2]
[333990883,1722666746973,-2096.17,0.00018082,2]
[333990884,1722666746984,-1049.02,0.00018082,2]
[333990885,1722666746994,-10150.27,0.00018082,2]
[333990886,1722666747313,-535.15013317,0.00018082,2]
[333990887,1722666747325,-1206.49,0.00018082,2]
[333990888,1722666747335,-1122.59,0.00018082,2]
[333990889,1722666747344,-576.06,0.00018082,2]
[333990890,1722666747355,-1726.0,0.00018082,2]
[333990891,1722666747364,-793.05,0.00018082,2]
[333990892,1722666747374,-3672.81,0.00018082,2]
[333990893,1722666747385,-3286.16,0.00018082,2]
[333990894,1722666747395,-3453.65,0.00018082,2]
[333990895,1722666747404,-500.0,0.00018082,2]
[333990896,1722666747414,-1612.0,0.00018082,2]
[333990897,1722666747423,-15160.97,0.00018082,2]
[333990898,1722666747433,-609.25706652,0.00018082,2]
[333990899,1722666747443,-1516.13,0.00018082,2]
[333990900,1722666747453,-1029.84,0.00018082,2]
[333990901,1722666747463,-1177.76,0.00018082,2]
[333990902,1722666747473,-500.0,0.00018082,2]
[333990903,1722666747484,-681.33,0.00018082,2]
[333990904,1722666747493,-7716.14,0.00018082,2]
[333990905,1722666747503,-500.0,0.00018082,2]
[333990906,1722666747513,-2110.03,0.00018082,2]
[333990907,1722666747523,-1577.4,0.00018082,2]
[333990908,1722666747532,-5511.15,0.00018082,2]
[333990909,1722666747542,-500.0,0.00018082,2]
[333990910,1722666747551,-1050.57,0.00018082,2]
[333990911,1722666747561,-797.55,0.00018082,2]
[333990912,1722666747571,-2534.68,0.00018082,2]
[333990913,1722666747581,-500.0,0.00018082,2]
[333990914,1722666747591,-2306.35,0.00018082,2]
[333990915,1722666747601,-3191.49,0.00018082,2]
[333990916,1722666747614,-681.76,0.00018082,2]
[333990917,1722666747624,-500.0,0.00018082,2]
[333990918,1722666747634,-517.29,0.00018082,2]
[333990919,1722666747643,-2590.66,0.00018082,2]
[333990920,1722666747657,-500.0,0.00018082,2]
[333990921,1722666747668,-2269.33,0.00018082,2]
[333990922,1722666747678,-500.0,0.00018082,2]
[333990923,1722666747688,-571.15,0.00018082,2]
[333990924,1722666747699,-4486.63,0.00018082,2]
[333990925,1722666747708,-1395.7,0.00018082,2]
[333990926,1722666747718,-927.9,0.00018082,2]
[333990927,1722666747729,-2172.92,0.00018082,2]
[333990928,1722666747739,-642.08,0.00018082,2]
[333990929,1722666747748,-500.0,0.00018082,2]
[333990930,1722666747758,-1875.47,0.00018082,2]
[333990931,1722666747767,-551.94,0.00018082,2]
[333990932,1722666747778,-1703.59,0.00018082,2]
[333990933,1722666747788,-1746.66,0.00018082,2]
[333990934,1722666747798,-500.0,0.00018082,2]
[333990935,1722666747807,-500.0,0.00018082,2]
[333990936,1722666747817,-784.82,0.00018082,2]
[333990937,1722666747827,-591.2,0.00018082,2]
[333990938,1722666747837,-849.08,0.00018082,2]
[333990939,1722666747846,-3768.21,0.00018082,2]
[333990940,1722666747856,-202.33802725,0.00018082,2]
[333990941,1722666747865,-876.21,0.00018082,2]
[333990942,1722666747875,-400.0,0.00018082,2]
[333990943,1722666747884,-1805.68,0.00018082,2]
[333990944,1722666747894,-168.09795296,0.00018082,2]
[333990945,1722666747903,-3769.02,0.00018082,2]
[333990946,1722666747913,-553.54533756,0.00018082,2]
[333990947,1722666747923,-2265.81,0.00018082,2]
[333990948,1722666747933,-608.02556198,0.00018082,2]
[333990949,1722666747943,-824.9,0.00018082,2]
[333990950,1722666747954,-1540.49,0.00018082,2]
[333990951,1722666747966,-614.94,0.00018082,2]
[333990952,1722666747975,-3464.14,0.00018082,2]
[333990953,1722666747984,-3761.09,0.00018082,2]
[333990954,1722666747994,-5639.15,0.00018082,2]
[333990955,1722666748003,-2239.27,0.00018082,2]
[333990956,1722666748013,-617.86,0.00018082,2]
[333990957,1722666748023,-650.38,0.00018082,2]
[333990958,1722666748032,-991.2,0.00018082,2]
[333990959,1722666748042,-3794.93,0.00018082,2]
[333990960,1722666748051,-500.0,0.00018082,2]
[333990961,1722666748062,-6154.67,0.00018082,2]
[333990962,1722666748071,-610.3,0.00018082,2]
[333990963,1722666748082,-1846.35,0.00018082,2]
[333990964,1722666748092,-2062.14,0.00018082,2]
[333990965,1722666748101,-7006.55,0.00018082,2]
[333990966,1722666748111,-500.0,0.00018082,2]
[333990967,1722666748121,-500.0,0.00018082,2]
[333990968,1722666748131,-654.74,0.00018082,2]
[333990969,1722666748140,-2260.06,0.00018082,2]
[333990970,1722666748150,-1671.01,0.00018082,2]
[333990971,1722666748159,-810.7,0.00018082,2]
[333990972,1722666748170,-2426.51,0.00018082,2]
[333990973,1722666748181,-500.0,0.00018082,2]
[333990974,1722666748191,-9425.49,0.00018082,2]
[333990975,1722666748201,-500.0,0.00018082,2]
[333990976,1722666748210,-1017.09,0.00018082,2]
[333990977,1722666748220,-706.97,0.00018082,2]
[333990978,1722666748230,-9197.15,0.00018082,2]
[333990979,1722666748241,-1431.9,0.00018082,2]
[333990980,1722666748251,-18960.81,0.00018082,2]
[333990981,1722666748260,-500.0,0.00018082,2]
[333990982,1722666748271,-500.0,0.00018082,2]
[333990983,1722666748281,-803.92,0.00018082,2]
[333990984,1722666748291,-666.06,0.00018082,2]
[333990985,1722666748301,-2204.57,0.00018082,2]
[333990986,1722666748311,-684.75,0.00018082,2]
[333990987,1722666748321,-1958.7,0.00018082,2]
[333990988,1722666748331,-2126.17,0.00018082,2]
[333990989,1722666748341,-2113.7,0.00018082,2]
[333990990,1722666748350,-876.59,0.00018082,2]
[333990991,1722666748360,-580.14,0.00018082,2]
[333990992,1722666748370,-3958.71,0.00018082,2]
[333990993,1722666748380,-1366.09,0.00018082,2]
[333990994,1722666748390,-1636.82,0.00018082,2]
[333990995,1722666748399,-3068.73,0.00018082,2]
[333990996,1722666748410,-1915.63,0.00018082,2]
[333990997,1722666748419,-2609.6,0.00018082,2]
[333990998,1722666748429,-500.0,0.00018082,2]
[333990999,1722666748440,-1156.97,0.00018082,2]
[333991000,1722666748450,-1837.83,0.00018082,2]
[333991001,1722666748460,-735.07,0.00018082,2]
[333991002,1722666748469,-593.78156286,0.00018082,2]
[333991003,1722666748480,-583.63,0.00018082,2]
[333991004,1722666748491,-664.37,0.00018082,2]
[333991005,1722666748500,-2322.65,0.00018082,2]
[333991006,1722666748510,-651.05,0.00018082,2]
[333991007,1722666748520,-500.0,0.00018082,2]
[333991008,1722666748531,-1304.49,0.00018082,2]
[333991009,1722666748541,-500.0,0.00018082,2]
[333991010,1722666748551,-1780.87,0.00018082,2]
[333991011,1722666748560,-1004.22,0.00018082,2]
[333991012,1722666748570,-3594.13,0.00018082,2]
[333991013,1722666748580,-500.0,0.00018082,2]
[333991014,1722666748589,-2603.67,0.00018082,2]
[333991015,1722666748599,-1000.0,0.00018125,2]
[333991016,1722666748608,-173.872857,0.00018134,2]
[333991017,1722666748618,-150.5,0.0001817,120]
[333991018,1722666748628,-155.0,0.00018176,2]
[333991019,1722666748639,-206.59146968,0.00018176,2]
[333991020,1722666748649,-155.15106041,0.00018176,2]
[333991021,1722666748663,-364.4957211,0.00018176,2]
[333991022,1722666748673,-155.0597128,0.00018176,2]
[333991023,1722666748683,-205.75981917,0.00018176,2]
[333991024,1722666748694,-155.14631875,0.00018176,2]
[333991025,1722666748703,-150.5,0.0001818,120]
[333991026,1722666748713,-150.5,0.0001819,120]
[333991027,1722666748723,-216.0,0.000182,2]
[333991028,1722666748736,-214.0,0.000182,2]
[333991029,1722666748746,-284.742637,0.00018207,2]
[333991030,1722666748755,-467.643079,0.00018207,2]
[333991031,1722666748765,-392.691139,0.00018207,2]
[333991032,1722666748775,-201.737184,0.00018207,2]
[333991033,1722666748785,-9814.464715,0.00018207,2]
[333991034,1722666748795,-29587.127974,0.00018207,2]
[333991035,1722666748805,-676.529965,0.00018207,2]
[333991036,1722666748814,-532.656803,0.00018207,2]
[333991037,1722666748825,-220.238779,0.00018207,2]
[333991038,1722666748835,-502.456116,0.00018207,2]
[333991039,1722666748845,-456.528838,0.00018207,2]
[333991040,1722666748854,-441.256191,0.00018207,2]
[333991041,1722666748864,-5619.454371,0.00018207,2]
[333991042,1722666748873,-475.552508,0.00018207,2]
[333991043,1722666748883,-272.306319,0.00018207,2]
[333991044,1722666748892,-8127.573152,0.00018207,2]
[333991045,1722666748902,-2855.804423,0.00018207,2]
[333991046,1722666748911,-11048.99179,0.00018207,2]
[333991047,1722666748921,-151.17,0.00018265,2]
[333991048,1722666748930,-500.0,0.00018356,2]
[333991049,1722666748940,-500.0,0.00018356,2]
[333991050,1722666748949,-989.73,0.00018356,2]
[333991051,1722666748960,-788.91,0.00018356,2]
[333991052,1722666748975,-500.0,0.00018356,2]
[333991053,1722666749005,-500.0,0.00018356,2]
[333991054,1722666749024,-500.0,0.00018356,2]
[333991055,1722666749045,-500.0,0.00018356,2]
[333991056,1722666749067,-500.0,0.00018356,2]
[333991057,1722666749086,-500.0,0.00018356,2]
[333991058,1722666749106,-567.17,0.00018356,2]
[333991059,1722666749121,-500.0,0.00018356,2]
[333991060,1722666749138,-500.0,0.00018356,2]
[333991061,1722666749161,-500.0,0.00018356,2]
[333991062,1722666749179,-1103.75,0.00018356,2]
[333991063,1722666749194,-1066.77,0.00018356,2]
[333991064,1722666749212,-500.0,0.00018356,2]
[333991065,1722666749233,-593.51,0.00018356,2]
[333991066,1722666749249,-766.07,0.00018356,2]
[333991067,1722666749271,-758.83,0.00018356,2]
[333991068,1722666749288,-1147.83,0.00018356,2]
[333991069,1722666749305,-569.94,0.00018356,2]
[333991070,1722666749322,-500.0,0.00018356,2]
[333991071,1722666749338,-635.70396347,0.00018356,2]
[333991072,1722666749355,-500.0,0.00018356,2]
[333991073,1722666749372,-500.0,0.00018356,2]
[333991074,1722666749389,-500.0,0.00018356,2]
[333991075,1722666749405,-500.0,0.00018356,2]
[333991076,1722666749422,-500.0,0.00018356,2]
[333991077,1722666749439,-500.0,0.00018356,2]
[333991078,1722666749455,-500.0,0.00018356,2]
[333991079,1722666749473,-500.0,0.00018356,2]
[333991080,1722666749491,-500.0,0.00018356,2]
[333991081,1722666749508,-627.07198432,0.00018356,2]
[333991082,1722666749526,-800.64,0.00018356,2]
[333991083,1722666749543,-715.96,0.00018356,2]
[333991084,1722666749559,-500.0,0.00018356,2]
[333991085,1722666749576,-500.0,0.00018356,2]
[333991086,1722666749592,-500.0,0.00018356,2]
[333991087,1722666749608,-517.53,0.00018356,2]
[333991088,1722666749624,-500.0,0.00018356,2]
[333991089,1722666749640,-702.72,0.00018356,2]
[333991090,1722666749658,-500.0,0.00018356,2]
[333991091,1722666749673,-937.04,0.00018356,2]
[333991092,1722666749689,-500.0,0.00018356,2]
[333991093,1722666749707,-500.0,0.00018356,2]
[333991094,1722666749723,-532.59620842,0.00018356,2]
[333991095,1722666749741,-500.0,0.00018356,2]
[333991096,1722666749756,-500.0,0.00018356,2]
[333991097,1722666749773,-500.0,0.00018356,2]
[333991098,1722666749789,-887.0,0.00018356,2]
[333991099,1722666749805,-500.0,0.00018356,2]
[333991100,1722666749820,-810.08,0.00018356,2]
[333991101,1722666749837,-500.0,0.00018356,2]
[333991102,1722666749853,-544.56,0.00018356,2]
[333991103,1722666749868,-603.96,0.00018356,2]
[333991104,1722666749884,-500.0,0.00018356,2]
[333991105,1722666749900,-500.0,0.00018356,2]
[333991106,1722666749915,-500.0,0.00018356,2]
[333991107,1722666749930,-500.0,0.00018356,2]
[333991108,1722666749945,-1120.78,0.00018356,2]
[333991109,1722666749960,-794.41,0.00018356,2]
[333991110,1722666749975,-573.1453991,0.00018356,2]
[333991111,1722666749990,-500.0,0.00018356,2]
[333991112,1722666750005,-1111.45,0.00018356,2]
[333991113,1722666750020,-633.16,0.00018356,2]
[333991114,1722666750035,-500.0,0.00018356,2]
[333991115,1722666750050,-500.0,0.00018356,2]
[333991116,1722666750066,-742.79,0.00018356,2]
[333991117,1722666750081,-500.0,0.00018356,2]
[333991118,1722666750097,-500.0,0.00018356,2]
[333991119,1722666750113,-500.0,0.00018356,2]
[333991120,1722666750129,-500.41,0.00018356,2]
[333991121,1722666750144,-501.81112908,0.00018356,2]
[333991122,1722666750159,-1144.59,0.00018356,2]
[333991123,1722666750174,-591.2,0.00018356,2]
[333991124,1722666750190,-500.0,0.00018356,2]
[333991125,1722666750207,-500.0,0.00018356,2]
[333991126,1722666750224,-500.0,0.00018356,2]
[333991127,1722666750240,-500.0,0.00018356,2]
[333991128,1722666750255,-500.0,0.00018356,2]
[333991129,1722666750271,-667.95,0.00018356,2]
[333991130,1722666750286,-500.0,0.00018356,2]
[333991131,1722666750301,-710.02,0.00018356,2]
[333991132,1722666750317,-1017.87,0.00018356,2]
[333991133,1722666750333,-586.31,0.00018356,2]
[333991134,1722666750350,-500.0,0.00018356,2]
[333991135,1722666750364,-1326.03,0.00018356,2]
[333991136,1722666750380,-628.24,0.00018356,2]
[333991137,1722666750394,-689.07,0.00018356,2]
[333991138,1722666750411,-500.0,0.00018356,2]
[333991139,1722666750427,-554.01,0.00018356,2]
[333991140,1722666750444,-500.0,0.00018356,2]
[333991141,1722666750461,-835.2,0.00018356,2]
[333991142,1722666750476,-500.0,0.00018356,2]
[333991143,1722666750493,-500.0,0.00018356,2]
[333991144,1722666750509,-541.45,0.00018356,2]
[333991145,1722666750525,-500.0,0.00018356,2]
[333991146,1722666750540,-500.0,0.00018356,2]
[333991147,1722666750556,-1060.7,0.00018356,2]
[333991148,1722666750571,-561.25,0.00018356,2]
[333991149,1722666750586,-573.22,0.00018356,2]
[333991150,1722666750602,-500.0,0.00018356,2]
[333991151,1722666750618,-500.0,0.00018356,2]
[333991152,1722666750633,-686.47,0.00018356,2]
[333991153,1722666750648,-511.65468778,0.00018356,2]
[333991154,1722666750667,-1223.77,0.00018356,2]
[333991155,1722666750683,-536.51,0.00018356,2]
[333991156,1722666750699,-210.88878504,0.00018356,2]
[333991157,1722666750714,-500.0,0.00018356,2]
[333991158,1722666750731,-175.93704821,0.00018356,2]
[333991159,1722666750747,-500.0,0.00018356,2]
[333991160,1722666750763,-500.0,0.00018356,2]
[333991161,1722666750778,-500.0,0.00018356,2]
[333991162,1722666750794,-1013.66,0.00018356,2]
[333991163,1722666750809,-500.0,0.00018356,2]
[333991164,1722666750824,-581.73,0.00018356,2]
[333991165,1722666750838,-500.0,0.00018356,2]
[333991166,1722666750853,-500.0,0.00018356,2]
[333991167,1722666750868,-500.0,0.00018356,2]
[333991168,1722666750883,-500.0,0.00018356,2]
[333991169,1722666750899,-500.0,0.00018356,2]
[333991170,1722666750915,-818.75,0.00018356,2]
[333991171,1722666750929,-500.0,0.00018356,2]
[333991172,1722666750944,-500.0,0.00018356,2]
[333991173,1722666750958,-500.0,0.00018356,2]
[333991174,1722666750974,-500.0,0.00018356,2]
[333991175,1722666750995,-500.0,0.00018356,2]
[333991176,1722666751010,-518.93968363,0.00018356,2]
[333991177,1722666751025,-500.0,0.00018356,2]
[333991178,1722666751039,-500.0,0.00018356,2]
[333991179,1722666751053,-500.0,0.00018356,2]
[333991180,1722666751068,-500.0,0.00018356,2]
[333991181,1722666751083,-500.0,0.00018356,2]
[333991182,1722666751097,-500.0,0.00018356,2]
[333991183,1722666751111,-899.56,0.00018356,2]
[333991184,1722666751127,-500.0,0.00018356,2]
[333991185,1722666751143,-500.0,0.00018356,2]
[333991186,1722666751161,-1080.66,0.00018356,2]
[333991187,1722666751177,-500.0,0.00018356,2]
[333991188,1722666751191,-500.0,0.00018356,2]
[333991189,1722666751206,-500.0,0.00018356,2]
[333991190,1722666751221,-500.0,0.00018356,2]
[333991191,1722666751237,-500.0,0.00018356,2]
[333991192,1722666751251,-713.4,0.00018356,2]
[333991193,1722666751266,-500.0,0.00018356,2]
[333991194,1722666751283,-513.0,0.00018356,2]
[333991195,1722666751299,-1040.19,0.00018356,2]
[333991196,1722666751313,-500.0,0.00018356,2]
[333991197,1722666751328,-992.68,0.00018356,2]
[333991198,1722666751344,-521.61,0.00018356,2]
[333991199,1722666751359,-577.74,0.00018356,2]
[333991200,1722666751374,-500.0,0.00018356,2]
[333991201,1722666751388,-500.0,0.00018356,2]
[333991202,1722666751403,-645.01,0.00018356,2]
[333991203,1722666751417,-500.0,0.00018356,2]
[333991204,1722666751433,-500.0,0.00018356,2]
[333991205,1722666751448,-775.07,0.00018356,2]
[333991206,1722666751463,-500.0,0.00018356,2]
[333991207,1722666751477,-500.0,0.00018356,2]
[333991208,1722666751493,-968.44,0.00018356,2]
[333991209,1722666751508,-500.0,0.00018356,2]
[333991210,1722666751523,-1060.45,0.00018356,2]
[333991211,1722666751539,-500.0,0.00018356,2]
[333991212,1722666751553,-925.11,0.00018356,2]
[333991213,1722666751567,-500.0,0.00018356,2]
[333991214,1722666751582,-889.34,0.00018356,2]
[333991215,1722666751598,-512.94918463,0.00018356,2]
[333991216,1722666751937,-500.0,0.00018356,2]
[333991217,1722666751959,-500.0,0.00018356,2]
[333991218,1722666751968,-500.0,0.00018356,2]
[333991219,1722666751978,-593.73,0.00018356,2]
[333991220,1722666751987,-500.0,0.00018356,2]
[333991221,1722666751997,-500.0,0.00018356,2]
[333991222,1722666752007,-500.0,0.00018356,2]
[333991223,1722666752016,-500.0,0.00018356,2]
[333991224,1722666752026,-500.0,0.00018356,2]
[333991225,1722666752035,-997.26,0.00018356,2]
[333991226,1722666752045,-637.94,0.00018356,2]
[333991227,1722666752055,-1442.56,0.00018356,2]
[333991228,1722666752065,-720.84,0.00018356,2]
[333991229,1722666752075,-500.0,0.00018356,2]
[333991230,1722666752084,-600.01,0.00018356,2]
[333991231,1722666752093,-959.37,0.00018356,2]
[333991232,1722666752103,-500.0,0.00018356,2]
[333991233,1722666752113,-590.48,0.00018356,2]
[333991234,1722666752122,-539.49,0.00018356,2]
[333991235,1722666752131,-1113.83,0.00018356,2]
[333991236,1722666752141,-500.0,0.00018356,2]
[333991237,1722666752150,-500.0,0.00018356,2]
[333991238,1722666752159,-663.54,0.00018356,2]
[333991239,1722666752169,-500.0,0.00018356,2]
[333991240,1722666752179,-668.52,0.00018356,2]
[333991241,1722666752188,-500.0,0.00018356,2]
[333991242,1722666752197,-1284.57,0.00018356,2]
[333991243,1722666752207,-500.0,0.00018356,2]
[333991244,1722666752216,-729.2,0.00018356,2]